Cogmind - Beta 16.1 @@@ ROGUE MODE // 2026.04.28 @ 20:32:48 Player: KURIIRI Result: Self-destructed Performance ------------- Evolutions (4) 2000 Regions Visited (7) 1400 Robots Destroyed (74) 370 Value Destroyed (2486) 2486 Prototype IDs (12) 240 Alien Tech Used (0) 0 Bonus (1512) 1512 TOTAL SCORE: 8008 Bonus ------- High Alert Combat Kills 12 Entered Garrisons 200 Used RIF Installer 500 Registered with UFD 300 Met Optimus in HQ 500 Cogmind --------- Core Integrity 382/850 Matter 61/300 Energy 100/100 System Corruption 5% Temperature Cool (0) Movement Hovering (80) Location -6/Garrison Parts ------- > --- POWER (1) -------- (None) > --- PROPULSION (6) --- Combat Airjet > --- UTILITY (6) ------ Medium Storage Unit Advanced Visual Processing Unit Core Analyzer > --- WEAPON (2) ------- Powered Hammer > --- INVENTORY (10) --- Hacking Suite Hacking Suite Improved Hacking Suite Improved Hacking Suite Relay Coupler [NC] (33) Multitool Peak State ------------ > --- POWER ------------ Fission Core > --- PROPULSION ------- Combat Airjet Combat Airjet Combat Airjet Combat Airjet Combat Airjet Combat Airjet > --- UTILITY ---------- Medium Storage Unit Advanced Visual Processing Unit Core Analyzer Improved Heavy Armor Plating Improved System Shield > --- WEAPON ----------- Heavy Linear Accelerator > --- INVENTORY -------- Hybrid Antimatter Reactor Hacking Suite Hacking Suite Improved Hacking Suite Improved Hacking Suite Multitool Powered Hammer [Rating: 76] Favorites ----------- Power Ion Engine Engine Ion Engine Power Core Fission Core Reactor Hybrid Antimatter Reactor Propulsion Combat Airjet Treads Light Treads Leg Aluminum Leg Wheel Wheel Hover Unit Combat Airjet Flight Unit Nuclear Pulse Thruster Utility High-capacity Storage Unit Device Tractor Beam Storage High-capacity Storage Unit Processor Advanced Visual Processing Unit Hackware Makeshift Hacking Suite Protection Hardened Light Armor Plating Weapon Improved Assault Rifle Energy Gun Subdweller Laser Energy Cannon Beam Cannon Ballistic Gun Improved Assault Rifle Ballistic Cannon Heavy Linear Accelerator Launcher Grenade Launcher Special Weapon Multitool Impact Weapon Hammer Build | -11 -10 -10 -9 -6 -6 -6 -6 ------- Run | Yrd Mat Sub Scr Fac Was Fac Gar Slots Evolved 8 | . . . . 8 . . . Power . | . . . . . . . . Propulsion 4 | . . . . 4 . . . Utility 4 | . . . . 4 . . . Weapon . | . . . . . . . . Parts Attached 61 | 3 10 12 . 19 . 14 3 Power 4 | . . 1 . 1 . 1 1 Engine 1 | . . 1 . . . . . Core 2 | . . . . 1 . 1 . Reactor 1 | . . . . . . . 1 Propulsion 21 | 2 1 4 . 6 . 7 1 Treads 4 | 2 . 2 . . . . . Leg . | . . . . . . . . Wheel 3 | . 1 2 . . . . . Hover 13 | . . . . 5 . 7 1 Flight 1 | . . . . 1 . . . Utility 20 | 1 2 2 . 9 . 5 1 Device 5 | 1 . 1 . 2 . 1 . Storage 3 | . 1 . . 1 . 1 . Processor 3 | . . . . 1 . 2 . Hackware 5 | . . . . 4 . 1 . Protection 4 | . 1 1 . 1 . . 1 Artifact . | . . . . . . . . Weapon 16 | . 7 5 . 3 . 1 . Energy Gun 2 | . 1 1 . . . . . Energy Cannon 2 | . 1 . . 1 . . . Ballistic Gun 5 | . 2 3 . . . . . Ballistic Cannon 1 | . . . . . . 1 . Launcher 2 | . 1 1 . . . . . Special Weapon 1 | . . . . 1 . . . Impact Weapon 3 | . 2 . . 1 . . . Slashing Weapon . | . . . . . . . . Piercing Weapon . | . . . . . . . . Special Melee Weapon . | . . . . . . . . Unidentified Prototypes 1 | . . . . 1 . . . Parts Lost 19 | . . 5 . 1 . 2 11 Power 3 | . . 1 . . . . 2 Propulsion 7 | . . 1 . . . . 6 Utility 3 | . . . . . . 1 2 Weapon 6 | . . 3 . 1 . 1 1 Highest Loss Streak 5 | . . 2 . 1 . 2 5 To Critical Strikes . | . . . . . . . . Average Backups 14 | 5 12 19 17 9 9 9 6 Power . | 1 1 . . 1 1 1 . Propulsion 5 | 3 6 7 7 . . 1 . Utility 4 | . 2 5 6 4 4 4 4 Weapon 2 | 1 3 3 3 2 2 1 . Tool/Special . | . . . . . . . . Unused Backups 22 | . 2 4 3 2 2 4 5 Power . | . . . . . . . . Propulsion 2 | . . 1 . 1 . . . Utility 16 | . 2 2 3 1 . 3 5 Weapon 4 | . . 1 . . 2 1 . Tool/Special . | . . . . . . . . Average Slot Usage (%) 93 | . 99 99 90 89 93 91 76 Engine 9 | . 14 13 14 . . . . Core 1 | . . . . 5 6 5 1 Treads 18 | . 26 24 27 . . . . Wheel 1 | . . 3 . . . . . Hover 10 | . . . . 32 33 38 33 Device 3 | . 11 4 . 11 6 . . Storage 11 | . 14 14 14 6 6 6 6 Processor 2 | . . . . 1 . 11 13 Hackware 4 | . . . . 16 26 20 6 Protection 6 | . 2 9 14 . . . 2 Energy Gun 2 | . 2 3 5 . . . . Energy Cannon 3 | . 5 10 . 5 6 . . Ballistic Gun 9 | . 13 13 14 . . . . Impact Weapon 1 | . 6 . . . . . 3 Peak Build Rating 76 | 7 13 15 15 41 40 75 76 Average Rating 25 | 6 8 13 13 35 39 68 58 On Entrance 26 | 6 7 13 15 13 39 40 75 Avg Prop Armor Cover (%) 2 | . 12 . 11 2 2 2 . Naked Turns . | . . . . . . . . Heaviest Build 62 | 14 56 58 57 36 28 47 62 Greatest Support 78 | 40 40 40 40 30 30 76 78 Greatest Overweight (x) 3 | . 1 2 3 1 . . . Average Overweight (x) . | . . 1 1 . . . . Largest Inventory Capacity 20 | 8 20 20 20 20 10 20 10 Average Capacity 16 | 8 16 20 20 10 10 10 10 Most Carried 20 | 7 20 20 20 19 10 10 10 Average Carried 14 | 5 12 19 17 9 9 9 6 Final Capacity 20 | 8 20 20 20 10 10 10 10 Final Carried 20 | 5 20 17 20 10 10 10 6 Class Distribution -------------------- 76% | Mutant 22% | Hacker-Mutant Dominant Class ---------------- Mutant | -10/Materials Mutant | -10/Subcaves Mutant | -9/Scraptown Hacker-Mutant | -6/Factory Hacker-Mutant | -6/Waste Hacker-Mutant | -6/Factory Mutant | -6/Garrison Resources | -11 -10 -10 -9 -6 -6 -6 -6 ----------- Run | Yrd Mat Sub Scr Fac Was Fac Gar Matter Collected 2432 | 242 415 445 28 98 142 695 367 Remotely 441 | 42 399 . . . . . . Salvage Created 2339 | 76 573 478 . 168 . 703 341 Parts 123 | 5 29 30 . 12 . 32 15 Haulers Intercepted 2 | . 1 . . . . 1 . Recyclers Shooed 3 | . 3 . . . . . . Parts Field Recycled . | . . . . . . . . Retrieved Matter . | . . . . . . . . Parts Self-Destructed 13 | . . 13 . . . . . Prevented . | . . . . . . . . Parts Restored . | . . . . . . . . Kills | -11 -10 -10 -9 -6 -6 -6 -6 ------- Run | Yrd Mat Sub Scr Fac Was Fac Gar Combat Hostiles Destroyed 52 | . 13 14 . 3 . 11 11 Melee 8 | . 1 1 . 1 . 1 4 Guns 12 | . 4 8 . . . . . Cannons 16 | . 1 2 . . . 9 4 AOE 6 | . 3 3 . . . . . Classes Destroyed 18 | 2 6 2 . 1 . 4 3 Worker 5 | . 2 . . 1 . 2 . Builder 1 | . 1 . . . . . . Tunneler 3 | 1 1 . . 1 . . . Hauler 2 | . 1 . . . . 1 . Recycler 3 | 1 1 . . . . 1 . Operator 2 | . . . . 1 . 1 . Watcher 6 | . 2 . . 1 . 3 . Swarmer 15 | . 5 3 . 3 . 3 1 Cutter 2 | . . . . . . . 2 Grunt 12 | . 8 . . . . 2 2 Duelist 1 | . . . . . . 1 . Sentry 2 | . . . . . . 1 1 Specialist 1 | . . . . . . . 1 Hunter 3 | . . . . . . 2 1 Programmer 4 | . . . . . . 2 2 Behemoth 1 | . . . . . . . 1 Artisan 1 | . . 1 . . . . . Subdweller 11 | . . 11 . . . . . Best Kill Streak 4 | 2 3 4 . 3 . 4 2 Combat Bots Only 4 | . 3 4 . 3 . 2 2 Max Kills in Single Turn 2 | 1 2 1 . 1 . 1 1 Gunslinging . | . . . . . . . . Exploded 2 | . 2 1 . . . . . Melee 1 | . 1 1 . 1 . 1 1 Uniques/NPCs Destroyed . | . . . . . . . . Combat | -11 -10 -10 -9 -6 -6 -6 -6 -------- Run | Yrd Mat Sub Scr Fac Was Fac Gar Hostile Shots Fired 451 | . 48 96 . 15 . 97 195 Missed 161 | . 15 26 . 9 . 36 75 Hits 290 | . 33 70 . 6 . 61 120 Melee 5 | . . . . . . 1 4 Projectile 285 | . 33 70 . 6 . 60 116 AOE 1 | . . . . . . . 1 Critical Strikes 6 | . 1 1 . . . . 4 Damage Taken 4829 | . 376 1145 . 72 . 1059 2177 Core 691 | . 73 150 . 16 . 131 321 Absorbed by Shields . | . . . . . . . . Regen/Repaired (Parts) 951 | . 138 . . . . 813 . Core Remaining (%) 55 | 100 . . 10 . . . . Volleys Fired 203 | 4 33 56 . 22 . 63 25 Largest 2 | 2 2 2 . 1 . 1 1 Hottest 90 | 60 80 90 . 90 . 90 70 Shots Fired 272 | 8 60 91 . 22 . 64 27 Gun 120 | 8 48 64 . . . . . Cannon 139 | . 9 17 . 22 . 64 27 Launcher 13 | . 3 10 . . . . . Special . | . . . . . . . . Kinetic 161 | 4 30 46 . . . 54 27 Thermal 99 | 4 27 36 . 22 . 10 . Explosive 12 | . 3 9 . . . . . Electromagnetic . | . . . . . . . . Robot Hit Streak 22 | 5 8 22 . 3 . 4 8 Robot Miss Streak 5 | 1 4 2 . 4 . 5 2 Penetration Max . | . . . . . . . . Secondary Targets 3 | . 1 2 . . . . . Max Gunslinging Chain 1 | . 1 1 . . . . . Shots Hit Robots 196 | 6 52 59 . 10 . 36 33 Core Hits 74 | 3 19 24 . 5 . 15 8 Critical Kills 1 | . . 1 . . . . . Critical Parts Destroyed 11 | . 7 . . . . 1 3 Critical Strikes 15 | . 7 1 . . . 3 4 Blast 3 | . . . . . . 2 1 Smash 12 | . 7 1 . . . 1 3 Melee Attacks 99 | . 27 9 . 7 . 13 43 Impact 99 | . 27 9 . 7 . 13 43 Slashing . | . . . . . . . . Piercing . | . . . . . . . . Sneak Attacks 6 | . 4 . . . . 1 1 Combat Hostiles 1 | . 1 . . . . . . Follow-up Attacks . | . . . . . . . . Damage Inflicted 7638 | 72 1216 1375 . 365 . 2323 2287 Guns 982 | 72 291 619 . . . . . Cannons 3956 | . 143 245 . 227 . 1887 1454 Explosions 629 | . 212 417 . . . . . Melee 2050 | . 549 94 . 138 . 436 833 Ramming 21 | . 21 . . . . . . Kinetic 4038 | 50 164 641 . . . 1729 1454 Thermal 1005 | 22 270 328 . 227 . 158 . Explosive 524 | . 212 312 . . . . . Electromagnetic . | . . . . . . . . Impact 2050 | . 549 94 . 138 . 436 833 Slashing . | . . . . . . . . Piercing . | . . . . . . . . Highest Corruption 5 | . . . . . . 3 5 Average Corruption 3 | . . . . . . 3 3 Corruption Purged . | . . . . . . . . Corruption Blocked . | . . . . . . . . Effects 26 | . . . . . . 14 12 Message Errors 5 | . . . . . . 4 1 Matter Fused 6 | . . . . . . 1 5 Heat Flow Errors 5 | . . . . . . 4 1 Energy Discharges 2 | . . . . . . 2 . Parts Fused 1 | . . . . . . 1 . Data Loss (minor) 3 | . . . . . . 1 2 Misfires 3 | . . . . . . 1 2 Alerts 1 | . . . . . . . 1 Overload Shots . | . . . . . . . . Overflow Damage 1067 | . 227 9 . 33 . 334 464 Projectiles 347 | . 4 . . . . 203 140 Explosions . | . . . . . . . . Melee 720 | . 223 9 . 33 . 131 324 Knockbacks 13 | . 4 . . . . 4 5 Impact 7 | . 4 . . . . 2 1 Kinetic 5 | . . . . . . 2 3 Secondary 1 | . . . . . . . 1 Self-Inflicted Damage 75 | . . 75 . . . . . Shots 4 | . . 4 . . . . . Rammed 2 | . 2 . . . . . . Targets Rammed 4 | . 4 . . . . . . Kicked . | . . . . . . . . Crushed 2 | . 2 . . . . . . Highest Temperature 303 | . 36 . . 205 . 263 303 Average Temperature 52 | . 14 . . 68 . 54 48 Received Heat Transfer 1091 | . 207 192 . 6 . 246 440 Siege Activations . | . . . . . . . . Martial Activations . | . . . . . . . . Shielding Activations . | . . . . . . . . Robots Disrupted . | . . . . . . . . Combat Hostiles . | . . . . . . . . Robots Corrupted 12 | . 5 . . 2 . 2 3 Combat Hostiles 10 | . 4 . . 2 . 1 3 Parts Fried 10 | . 5 . . 2 . 1 2 Impact Corruptions 34 | . 11 1 . 3 . 6 13 Robots Melted . | . . . . . . . . Combat Hostiles . | . . . . . . . . Parts Melted 5 | . . 2 . 1 . 1 1 Heat Transferred 1839 | 50 571 618 . 350 . 250 . Parts Sabotaged . | . . . . . . . . Parts Stolen . | . . . . . . . . Parts Stripped . | . . . . . . . . Power Chain Reactions . | . . . . . . . . Alert | -11 -10 -10 -9 -6 -6 -6 -6 ------- Run | Yrd Mat Sub Scr Fac Was Fac Gar Maximum Alert Level 2 | . . . . . . 1 2 Low Security (%) 90 | 100 100 . . 100 100 97 14 Level 1 9 | . . . . . . 2 80 Level 2 . | . . . . . . . 4 Level 3 . | . . . . . . . . Level 4 . | . . . . . . . . Level 5 . | . . . . . . . . High Security . | . . . . . . . . Max Security . | . . . . . . . . Peak Influence 414 | 10 156 . . 64 16 220 414 Initial 161 | . . . . . 16 . 161 Average 100 | 3 71 . . 20 3 100 310 Influence Increases 2169 | 10 662 90 . 217 . 857 333 Destroy 0b10 Robot/C 820 | . 260 60 . 60 . 220 220 Destroy 0b10 Robot/NC 110 | 10 40 . . 20 . 40 . Destroy Leader 126 | . 66 . . 12 . 48 . Successful Hack 281 | . 54 . . 18 . 209 . Select Force Hacks 60 | . 60 . . . . . . Disable Machine 105 | . 15 . . 15 . 60 15 Anti-Garrison Action 50 | . . . . . . . 50 Destroy Structure 107 | . 17 . . 17 . 40 33 Partial Spotted 30 | . . . . . . 30 . Lose Combat Pursuer 480 | . 150 30 . 75 . 210 15 Influence Decreases 1785 | 10 581 143 28 171 46 626 180 Entered New Map 168 | . . 40 28 . 30 . 70 Time Decay 1437 | 10 581 83 . 161 16 586 . Lost Part 160 | . . 20 . 10 . 20 110 Lost Ally 20 | . . . . . . 20 . Squads Dispatched 20 | . 4 . . 6 . 10 . Investigation 13 | . 4 . . 2 . 7 . Extermination 4 | . . . . 1 . 3 . Reinforcement . | . . . . . . . . Assault . | . . . . . . . . Garrison 3 | . . . . 3 . . . Intercept . | . . . . . . . . Searches Triggered . | . . . . . . . . Construction Impeded . | . . . . . . . . Haulers Reinforced . | . . . . . . . . Active Scanning Responses . | . . . . . . . . Cargo Convoy Interrupts . | . . . . . . . . Stealth | -11 -10 -10 -9 -6 -6 -6 -6 --------- Run | Yrd Mat Sub Scr Fac Was Fac Gar Distress Signals . | . . . . . . . . Communications Jammed . | . . . . . . . . Distress Signals . | . . . . . . . . Times Spotted 104 | . 30 16 . 10 . 33 15 Peak Tracking Total 6 | . 5 6 . 3 . 4 4 Tactical Retreats 18 | . 7 1 . 3 . 6 1 Traps | -11 -10 -10 -9 -6 -6 -6 -6 ------- Run | Yrd Mat Sub Scr Fac Was Fac Gar Traps Triggered 13 | . 2 1 . 1 . 6 3 Indirectly . | . . . . . . . . Trap Hack Attempts . | . . . . . . . . Triggered . | . . . . . . . . Disarmed . | . . . . . . . . Reprogrammed . | . . . . . . . . Reused . | . . . . . . . . Traps Extracted . | . . . . . . . . Installed . | . . . . . . . . Triggered . | . . . . . . . . Machines | -11 -10 -10 -9 -6 -6 -6 -6 ---------- Run | Yrd Mat Sub Scr Fac Was Fac Gar Machines Disabled 9 | . 2 . . 1 . 4 2 Max in Single Turn 1 | . 1 . . 1 . 1 1 Garrison Access 4 | . . . . 2 . 2 . Garrison Relay 1 | . . . . . . . 1 Machines Repaired 3 | . . . . 1 . 2 . Machines Dismantled . | . . . . . . . . Machines Sabotaged . | . . . . . . . . Overloaded Fab Kills . | . . . . . . . . Hacking | -11 -10 -10 -9 -6 -6 -6 -6 --------- Run | Yrd Mat Sub Scr Fac Was Fac Gar Machines Accessed 55 | . 10 1 5 8 . 31 . Terminals 25 | . 7 . . 3 . 15 . Fabricators 2 | . . . . . . 2 . Repair Stations 4 | . 1 . . . . 3 . Recycling Units 9 | . 2 . . 2 . 5 . Scanalyzers 3 | . . . . . . 3 . Garrison Access 6 | . . . . 3 . 3 . Total Hacks 182 | . 34 4 25 22 . 97 . Successful 130 | . 22 4 25 10 . 69 . Failed 51 | . 12 . . 12 . 27 . Catastrophic 5 | . 1 . . 2 . 2 . Database Lockouts 1 | . . . . . . 1 . Manual 87 | . 26 . . 14 . 47 . Terminals 89 | . 22 . . 12 . 55 . Fabricators 4 | . . . . . . 4 . Repair Stations 23 | . 6 . . . . 17 . Recycling Units 14 | . 6 . . 2 . 6 . Scanalyzers 9 | . . . . . . 9 . Garrison Access 14 | . . . . 8 . 6 . Terminal Hacks 53 | . 8 4 25 2 . 14 . Record 29 | . . 4 25 . . . . Part Schematic 1 | . . . . . . 1 . Robot Analysis 7 | . 6 . . . . 1 . Prototype ID Bank 4 | . 1 . . . . 3 . Emergency Access Points 1 | . 1 . . . . . . Terminal Index 2 | . . . . 1 . 1 . Repair Station Index 1 | . . . . . . 1 . Scanalyzer Index 2 | . . . . 1 . 1 . Garrison Index 1 | . . . . . . 1 . Alert Level 1 | . . . . . . 1 . Locate Traps 1 | . . . . . . 1 . Recall Extermination 1 | . . . . . . 1 . Zone Layout 2 | . . . . . . 2 . Fabricator Hacks 1 | . . . . . . 1 . Network Status 1 | . . . . . . 1 . Repair Station Hacks 21 | . 6 . . . . 15 . Scan Component 11 | . 3 . . . . 8 . Repair 10 | . 3 . . . . 7 . Recycling Unit Hacks . | . . . . . . . . Scanalyzer 7 | . . . . . . 7 . Insert Component 3 | . . . . . . 3 . Analyze 2 | . . . . . . 2 . Retrieve Study 2 | . . . . . . 2 . Garrison Access Hacks 5 | . . . . 2 . 3 . Unlock Access 1 | . . . . . . 1 . Seal Access 4 | . . . . 2 . 2 . Unauthorized Hacks 43 | . 8 . . 6 . 29 . Terminals 31 | . 6 . . 4 . 21 . Track 6 | . . . . 1 . 5 . Assimilate 3 | . . . . . . 3 . Botnet 10 | . 1 . . 2 . 7 . Operators 1 | . . . . . . 1 . Skim 11 | . 5 . . 1 . 5 . Fabricators 2 | . . . . . . 2 . Report 1 | . . . . . . 1 . Liberate 1 | . . . . . . 1 . Repair Stations . | . . . . . . . . Recycling Units 9 | . 2 . . 2 . 5 . Tunnel 2 | . 2 . . . . . . Fedlink 7 | . . . . 2 . 5 . Scanalyzers . | . . . . . . . . Garrison Access 1 | . . . . . . 1 . Reprogram 1 | . . . . . . 1 . Data Cores Recovered . | . . . . . . . . Used . | . . . . . . . . Hacking Detections 33 | . 8 . . 4 . 21 . Full Trace Events . | . . . . . . . . Feedback Events . | . . . . . . . . Feedback Blocked . | . . . . . . . . Robot Schematics Acquired . | . . . . . . . . Robots Built . | . . . . . . . . Authchips . | . . . . . . . . Time . | . . . . . . . . Total Robot Build Rating . | . . . . . . . . Part Schematics Acquired 3 | . . . . . . 3 . Parts Built . | . . . . . . . . Authchips . | . . . . . . . . Time . | . . . . . . . . Total Part Build Rating . | . . . . . . . . Part Studies Acquired 2 | . . . . . . 2 . Parts Repaired 10 | . 3 . . . . 7 . Time 405 | . 78 . . . . 327 . Parts Recycled . | . . . . . . . . Recycled Matter . | . . . . . . . . Retrieved Matter . | . . . . . . . . Retrieved Components . | . . . . . . . . Parts Scanalyzed 2 | . . . . . . 2 . Part Schematics Acquired 2 | . . . . . . 2 . Parts Damaged . | . . . . . . . . Bothacking | -11 -10 -10 -9 -6 -6 -6 -6 ------------ Run | Yrd Mat Sub Scr Fac Was Fac Gar Used RIF Installer 1 | . . . . . . . 1 Robots Hacked . | . . . . . . . . Non-combat . | . . . . . . . . Combat . | . . . . . . . . Robot Hacks Applied . | . . . . . . . . Relay Couplers Released 5 | . . . . . . . 5 Machine Destruction 5 | . . . . . . . 5 Fabnet Peak Effective % . | . . . . . . . . Robots Rewired . | . . . . . . . . Allies Hacked . | . . . . . . . . Hacks Repelled . | . . . . . . . . Allies | -11 -10 -10 -9 -6 -6 -6 -6 -------- Run | Yrd Mat Sub Scr Fac Was Fac Gar Total Allies 2 | . . . . . . 2 . Largest Group 1 | . . . . . . 1 . Highest-Rated Group 26 | . . . . . . 26 . Highest-Rated Ally 26 | . . . . . . 26 . Initial UFD Resources 48 | . . . . 24 38 38 48 Total Orders . | . . . . . . . . Ally Attacks . | . . . . . . . . Total Damage . | . . . . . . . . Kills . | . . . . . . . . Allies Corrupted . | . . . . . . . . Allies Melted . | . . . . . . . . Intel | -11 -10 -10 -9 -6 -6 -6 -6 ------- Run | Yrd Mat Sub Scr Fac Was Fac Gar Active Infowar (turns) 4055 | . . 805 . 518 119 2032 581 Optics 2572 | . . . . . . 1991 581 Sensors 88 | . . . . 88 . . . Terrain 1196 | . . 805 . 391 . . . Seismic 792 | . . . . 432 119 241 . Robot Analysis Total 7 | . 6 . . . . 1 . Derelict Logs Recovered 1 | . . . 1 . . . . Drone Launches . | . . . . . . . . Drone Recoveries . | . . . . . . . . Exploration | -11 -10 -10 -9 -6 -6 -6 -6 ------------- Run | Yrd Mat Sub Scr Fac Was Fac Gar Turns Passed 11597 | 34 2217 2763 3326 525 119 2032 581 Spaces Moved 6725 | 13 857 912 1345 678 263 2229 428 Core . | . . . . . . . . Treads 2783 | 6 768 711 1298 . . . . Legs 7 | 7 . . . . . . . Wheels 337 | . 89 201 47 . . . . Hover 3598 | . . . . 678 263 2229 428 Flight . | . . . . . . . . Fastest Speed 44 | 120 95 120 145 44 44 44 60 Average Speed 135 | 138 203 220 246 46 44 58 67 Slowest Speed 250 | 160 240 250 250 104 44 65 80 Overloaded Moves . | . . . . . . . . Propulsion Burnouts . | . . . . . . . . Robots Hopped . | . . . . . . . . Potential Cave-ins . | . . . . . . . . Cave-ins Triggered . | . . . . . . . . Exploration Rate (%) 55 | 2 93 47 83 23 96 68 33 Regions Visited 7 Branch Regions 2 Pre-discovered Areas 7 | . 3 . 1 1 . 2 . Known Exits Taken 1 | . . . . . . 1 . Unknown Exits Taken 4 | 1 1 1 1 . . . . Scrap Searched 12 | . . 6 6 . . . . Spaces Dug 33 | . 3 . . 12 . 11 7 Terrain Destroyed 135 | . 16 47 . 17 . 41 14 Melee 17 | . 3 . . 3 . 4 7 Projectile 58 | . . . . 14 . 37 7 AOE 60 | . 13 47 . . . . . Terrain Rammed . | . . . . . . . . Walls Destroyed . | . . . . . . . . Machines Disabled . | . . . . . . . . Actions | -11 -10 -10 -9 -6 -6 -6 -6 --------- Run | Yrd Mat Sub Scr Fac Was Fac Gar Total 8726 | 22 1222 1553 1360 857 267 2835 610 Wait 1471 | . 263 543 . 104 . 472 89 Move 6719 | 12 856 911 1344 678 262 2228 428 Hop . | . . . . . . . . Pick Up 58 | 1 20 6 9 8 2 10 2 Fast Attach 24 | 1 3 1 . 4 . 15 . Attach 28 | 2 . 5 . 12 . 3 6 Detach 9 | . . 1 . 4 . 3 1 Swap 38 | . 10 15 1 5 . 7 . Drop 54 | 2 6 6 6 11 3 17 3 Fire 203 | 4 33 56 . 22 . 63 25 Melee 99 | . 27 9 . 7 . 13 43 Ram . | . . . . . . . . Kick . | . . . . . . . . Crush 4 | . 4 . . . . . . Escape Stasis 13 | . . . . . . . 13 Rewire . | . . . . . . . . Trap . | . . . . . . . . Miscellaneous 6 | . . . . 2 . 4 . Route ------- -11/Scrapyard -10/Materials (discovered 5 exits: *Mat x3 / [*Min] / *Sub) -10/Subcaves (discovered 2 exits: [*Mat] / *Scr) -9/Scraptown (discovered 2 exits: *Fac x2) -6/Factory -6/Waste -6/Factory (discovered 5 exits: *Fac x2 / *Low x2 / Gar) -6/Garrison History --------- Turn | Location | Event 14 | -11/Scrapyard | Discovered new exit (range 3) 35 | -11/Scrapyard | Entered Materials 36 | -10/Materials | Met a group of wandering Federalists 109 | -10/Materials | Discovered new exit (range 7) 301 | -10/Materials | Discovered new exit (range 16) 318 | -10/Materials | Build established: Mutant 441 | -10/Materials | Discovered new exit (range 16) 1020 | -10/Materials | Learned 4 Subcaves zone layouts 1062 | -10/Materials | Learned location of Subcaves (-10) 1088 | -10/Materials | Repaired Lgt. Treads 1092 | -10/Materials | Identified exit to Materials 1114 | -10/Materials | Learned Recycling recycling unit intel 1116 | -10/Materials | Repaired Hcp. Matter Pod 1128 | -10/Materials | Learned location of 1 exit from Recycling 1130 | -10/Materials | Loaded intel: 4 trap records 1133 | -10/Materials | Learned 2 Storage zone layouts 1143 | -10/Materials | Repaired Lgt. Treads 1205 | -10/Materials | Learned location of 1 exit from Recycling 2252 | -10/Materials | Entered Subcaves 2253 | -10/Subcaves | Continued accompanying wandering Federalists (6) 2253 | -10/Subcaves | Approached by a straggling Scientist 2276 | -10/Subcaves | Shifting Twisted Machinery released Sub. Shrapnel Launcher 2461 | -10/Subcaves | Lost 6 allies 2496 | -10/Subcaves | Wandering Federalist uncovered a shortcut to Scraptown 2933 | -10/Subcaves | Discovered new exit (range 10) 3521 | -10/Subcaves | Core integrity fell below 50% 4062 | -10/Subcaves | Disturbed a concealed Subdweller 4253 | -10/Subcaves | Ambushed by Subdweller buried in earth 4457 | -10/Subcaves | Visited Clippyterm 4464 | -10/Subcaves | Learned Factory garrison access intel 4600 | -10/Subcaves | Core integrity fell below 20% 5015 | -10/Subcaves | Entered Scraptown 5320 | -9/Scraptown | Visited Red Mages 5675 | -9/Scraptown | Scanned Subdweller tech in exchange for log data 5683 | -9/Scraptown | Learned location of 1 exit from Factory 5903 | -9/Scraptown | Visited Assassins FH 5918 | -9/Scraptown | Visited CPS Storage 5948 | -9/Scraptown | Visited Fellowship of the Rings 6038 | -9/Scraptown | Visited UFD Registry 6038 | -9/Scraptown | Registered with UFD as "Pulsecircuit" 6155 | -9/Scraptown | Discovered new exit (range 13) 6208 | -9/Scraptown | Guru changed UFD alias to "Thermowarp" 6360 | -9/Scraptown | Visited Cyclists 6380 | -9/Scraptown | Entered Cyclist Reading Room 6435 | -9/Scraptown | Visited SPCMW 6638 | -9/Scraptown | Visited Modified Component R&D 6738 | -9/Scraptown | Visited Science Testing Area 6778 | -9/Scraptown | Visited Research Penetration Think Tank 6833 | -9/Scraptown | Visited Curators Association 6908 | -9/Scraptown | Visited Scrapoid Pod Storage 6940 | -9/Scraptown | Visited DA-N13 Charitable Foundation 6950 | -9/Scraptown | Found DCF Scrap (29 items) 7010 | -9/Scraptown | Visited A0-MCA Data Center 7160 | -9/Scraptown | Visited Scrap Suit Storage 7195 | -9/Scraptown | Visited Abandonware Association 7223 | -9/Scraptown | Learned abandonware demo "REBOOT5.EXE" 7325 | -9/Scraptown | Visited Junk Repository 8242 | -9/Scraptown | Met Optimus 8242 | -9/Scraptown | Accepted into 0bPrime 8336 | -9/Scraptown | Discovered new exit (range 3) 8341 | -9/Scraptown | Entered Factory 8341 | -6/Factory | Evolved 8 slots: Propulsion x4, Utility x4 8342 | -6/Factory | Identified exit to Lower Caves 8343 | -6/Factory | Loaded intel: 3 garrison access locations 8546 | -6/Factory | Garrison activated, responded to threat 8740 | -6/Factory | Build established: Hacker-Mutant 8803 | -6/Factory | Loaded intel: 8 recycling unit locations 8815 | -6/Factory | Learned location of Protoforge (-3) 8866 | -6/Factory | Sucked down chute 8866 | -6/Factory | Entered Waste 8866 | -6/Waste | The area was eerily silent 8973 | -6/Waste | Discovered new exit (range 16) 8985 | -6/Waste | Entered Factory 9116 | -6/Factory | Discovered new exit (range 13) 9336 | -6/Factory | Discovered exit to Lower Caves (range 3) 9411 | -6/Factory | Repaired Broken Hvy. Linear Accelerator 9441 | -6/Factory | Repaired Broken Hyb. Antimatter Reactor 9546 | -6/Factory | Loaded intel: 8 recycling unit locations 9703 | -6/Factory | Learned 2 Proximity Caves zone layouts 9760 | -6/Factory | Learned 2 Lower Caves zone layouts 9806 | -6/Factory | Learned location of 1 exit from Proximity Caves 9862 | -6/Factory | Learned location of Hub_04(d) (-5) 9876 | -6/Factory | Identified exit to Factory 9928 | -6/Factory | Learned 2 Extension zone layouts 9932 | -6/Factory | Repaired Cmb. Airjet+ 10318 | -6/Factory | Central database locked down 10657 | -6/Factory | Repaired Hvy. Linear Accelerator 10709 | -6/Factory | Repaired Fission Core 10760 | -6/Factory | Repaired Cmb. Airjet+ 10814 | -6/Factory | Repaired Cmb. Airjet+ 10932 | -6/Factory | Spotted B-75 Beast 10975 | -6/Factory | Identified exit to Garrison 11017 | -6/Factory | Entered Garrison 11029 | -6/Garrison | Installed Relay Interface Framework 11045 | -6/Garrison | Triggered checkpoint 11136 | -6/Garrison | Garrison Relay disabled 11235 | -6/Garrison | Spotted B-75 Beast 11353 | -6/Garrison | Build established: Mutant 11479 | -6/Garrison | Destroyed B-75 Beast 11541 | -6/Garrison | Triggered checkpoint 11594 | -6/Garrison | Core integrity fell below 50% 11598 | -6/Garrison | Self-destructed Last Messages --------------- 11564_ Field strength at 58. 11565_ Field strength at 51. 11566_ Field strength at 44. 11567_ Field strength at 37. 11568_ Field strength at 30. 11569_ Field strength at 23. 11570_ Field strength at 16. 11571_ Field strength at 9. 11572_ Field strength at 2. 11573_ Stasis field depleted. 11573_ Hvy. Linear Accelerator destroyed. 11583_ Hyb. Antimatter Reactor destroyed. 11585_ Cmb. Airjet+ destroyed. 11585_ Destroyed VTOL Module. 11585_ S-27 Virus system corrupted by crushing effect. 11587_ Cmb. Airjet+ destroyed. 11588_ System corrupted: Matter fused (-10). 11588_ S-27 Virus destroyed. 11594_ Cmb. Airjet+ destroyed. Map ----- +----------------------------------------------------+ | ?????????????????????????????????????????????????? | | ?????????????????????????????????????????????????? | | ?????????????????????????????????????????????????? | | ?????????????????????????????????????????????????? | | ?????????????????????????????????????????????????? | | ?????????????????????????????????????????????????? | | ?????????????? ????????????????????????????????? | | ?????????????? ????????????????????????????????? | | ?????????????# #???????????????????????????????? | | ?????????????# #???????????????????????????????? | | ?????????????# #???????????????????????????????? | | ########""""## #???????????????????????????????? | | #???????????????????????????????? | | #???????????????????????????????? | | ? #???????????????????????????????? | | ??# ## ## #???????????????????????????????? | | ??# ## ## #???????????????????????????????? | | ??" "???????????????????????????????? | | ??" "???????????????????????????????? | | ??" "???????????????????????????????? | | ??"^ "???????????????????????????????? | | ??#^^ ## ## #???????????????????????????????? | | ??# ## % ##% ###########?????????????????????? | | ??# * s% #?????????????????????? | | ??# [% % s#?????????????????????? | | ??# % #"#+####@s#?????????????????????? | | ??# ## ######??????# #?????????????????????? | | ??# ## ????????????# ????????????????????? | | ??# ######????????????# ###???????????????????? | | ### #?????????????????# #?????????????????????? | | # #?????????????????# +?????????????????????? | | ##" #?????????????????# #?????????????????????? | | ?#" #?????????????????# #?????????????????????? | | ### #?????????????????# #?????????????????????? | | #?????????????????# #?????????????????????? | | =* #?????????????????# #?????????????????????? | | ! / #?????????????????? #?????????????????????? | | ##"+=##?????????????????? #?????????????????????? | | ### #??????????????????? ?????????????????????? | | ###????????????????? ?????????????????????? | | !/=##????????????????###?????????????????????? | | ! ="| #????????????????????????????????????????? | | !!^!!# ##????????????????????????????????????????? | | +#######?????????????????????????????????????????? | | +######??????????????????????????????????????????? | | #??????????????????????????????????????????? | | #?????????????????????????????????????????? | | !!!!"##?????????????????????????????????????????? | | """"""#??????????????????????????????????????????? | | #######??????????????????????????????????????????? | +----------------------------------------------------+ Best States ------------- Heat Dissipation 37 Energy Generation 18 Energy Capacity 1100 Matter Stores 300 Matter Capacity 300 Sight Range 20 Robot Scan Range 14 Terrain Scan Range 16 Terrain Scan Density 10 Armor Coverage 600 Resistance: TH 10 Evasion (%) 56 Core Analysis 6 Recoil Reduction 2 Offensive Hacking 21 Defensive Hacking 20 Item Schematics ----------------- Cmb. Airjet | -6/Factory | Hacked Hyb. Antimatter Reactor | -6/Factory | Scanalyzed Multitool | -6/Factory | Scanalyzed Robot Schematics ------------------ None Fabricated ------------ Nothing Repaired ---------- Lgt. Treads | 56% | -10/Materials Hcp. Matter Pod | 22% | -10/Materials Lgt. Treads | 70% | -10/Materials Hvy. Linear Accelerator | 16% | -6/Factory | Broken Hyb. Antimatter Reactor | 71% | -6/Factory | Broken Cmb. Airjet | 31% | -6/Factory Hvy. Linear Accelerator | 27% | -6/Factory Fission Core | 20% | -6/Factory Cmb. Airjet | 60% | -6/Factory Cmb. Airjet | 73% | -6/Factory Studied --------- Cmb. Airjet | -6/Factory | Hacked Imp. Gravmag System | -6/Factory | Hacked Alien Tech Used ----------------- None Achievements -------------- None Challenges ------------ None Game ------ Seed BurstSiegeDisintegrator Manual? 0 Play Time 01:15:33 Cumulative 429.4 hours Start 2026.04.28 @ 18:30:14 End 2026.04.28 @ 20:32:48 Sessions 3 Manual Loads 0 Difficulty Rogue Special Mode None Game No. 362 Rogue 326 Adventurer 36 Explorer 0 Win Type - Total 5 Types 2/0/0/1/0/0/0/2/0/0 Lore% 79 Gallery% 69 Achievement% 59 Wizard Run 0 Options --------- Layout 1 ASCII 0 Keyboard 0 Movement Numpad Keybinds 0 Fullscreen 1 Font 48/Smallcaps Map View 50x35 Zoom Use 0% Tactical HUD 1 Map Filters NONE Filters NONE Steam 1 RUN: 90784b26-52f4-45e1-b3cc-2eea7cd024da